bitfinex-derivatives/quotes_ETHF0:USTF0_20250709
["timestamp","ask_amount","ask_price","bid_price","bid_amount"]
[1752099088690,4.4764,2782.6,2781.7,4.4609]
[1752099088996,0.71873,2781.7,2781.4,3.9732]
[1752099089190,3.2078,2782.2,2781.5,1.91845581]
[1752099089191,1.71875,2781.6,2781.5,1.91845581]
[1752099089592,0.71886,2781.2,2781.1,3.2078]
[1752099089793,1.71886,2781.2,2781.1,5.12589315]
[1752099090089,1.71886,2781.2,2781.1,1.91809315]
[1752099090388,1.79735,2780.9,2780.4,5.31500798]
[1752099090592,0.71904,2780.5,2780.4,3.2078]
[1752099090788,0.71904,2780.5,2780.4,3.54506614]
[1752099090985,0.71903,2780.6,2780.4,3.54506614]
[1752099091188,0.71903,2780.6,2780.5,0.33726614]
[1752099091391,0.71904,2780.5,2780.4,3.2078]
[1752099091790,0.71904,2780.5,2780.1,3.2078]
[1752099091990,0.71912,2780.2,2780.1,3.2078]
[1752099092694,0.71922,2779.8,2779.7,3.2078]
[1752099096197,0.71922,2779.8,2779.7,3.76777613]
[1752099098999,1.2101,2780.1,2779.7,3.76777613]
[1752099099203,1.2101,2780.1,2780.0,3.2078]
[1752099099507,1.92924,2780.1,2780.0,3.2078]
[1752099100003,1.92924,2780.1,2780.0,3.92697]
[1752099100004,1.2101,2780.1,2780.0,3.92697]
[1752099100202,1.2101,2780.1,2780.0,4.48527229]
[1752099100703,0.7191,2780.3,2780.0,4.48526229]
[1752099100904,0.7191,2780.3,2780.1,0.71914]
[1752099101103,1.2584,2780.2,2780.0,3.2078]
[1752099101305,1.97752,2780.2,2780.1,0.55843953]
[1752099102905,0.71914,2780.1,2780.0,3.2078]
[1752099103105,1.92104,2780.1,2780.0,3.7665849]
[1752099103399,1.2019,2780.1,2780.0,3.7665849]
[1752099103605,1.92104,2780.1,2780.0,3.7665849]
[1752099104307,2.90014,2780.1,2780.0,0.5587849]
[1752099104608,0.71922,2779.8,2779.7,3.2078]
[1752099104803,0.71922,2779.8,2779.7,3.76691945]
[1752099106803,0.71922,2779.8,2779.7,3.2078]
[1752099107500,1.69832,2779.8,2779.7,3.2078]
[1752099107705,5.98499,2779.8,2779.2,3.2078]
[1752099107905,0.71932,2779.4,2779.3,2.46630268]
[1752099108607,0.71932,2779.4,2779.3,2.46631845]
[1752099109008,3.02583,2779.7,2779.3,2.46631845]
[1752099109306,3.02583,2779.7,2779.2,3.2078]
[1752099109307,0.71934,2779.4,2779.2,3.2078]
[1752099109513,2.77731,2779.6,2779.3,2.46210222]
[1752099109704,1.2767,2779.5,2779.2,3.2078]
[1752099109904,0.71934,2779.4,2779.3,2.46213981]
[1752099110708,1.99604,2779.4,2779.3,2.46213981]
[1752099110910,1.99602,2779.4,2779.3,3.18148981]
[1752099111110,1.99602,2779.4,2779.3,2.46213981]
[1752099111511,1.99602,2779.4,2779.3,0.5570468]
[1752099113706,0.7194,2779.1,2779.0,0.71942]
[1752099113912,0.7194,2779.1,2779.0,3.17010536]
[1752099114212,0.71939,2779.2,2779.0,3.17009536]
[1752099114521,0.71939,2779.2,2779.1,0.55648935]
[1752099114814,0.71939,2779.2,2779.0,0.71941]
[1752099115015,0.71939,2779.2,2778.9,3.2078]
[1752099115016,0.71943,2779.0,2778.9,3.2078]
[1752099115213,0.71943,2779.0,2778.9,2.43385596]
[1752099115418,1.69853,2779.0,2778.9,2.43385596]
[1752099115614,1.69853,2779.0,2778.9,1.89327492]
[1752099116116,0.7195,2778.7,2778.6,3.2078]
[1752099116312,0.7195,2778.7,2778.6,5.63957237]
[1752099117210,1.2343,2778.9,2778.6,5.63957237]
[1752099117407,1.2343,2778.9,2778.7,2.43177237]
[1752099117408,0.71948,2778.8,2778.7,2.43177237]
[1752099117612,1.69858,2778.8,2778.7,2.43177237]
[1752099117810,4.90638,2778.8,2778.7,2.43177237]
[1752099118015,0.71961,2778.3,2778.2,2.10720798]
[1752099118211,0.71969,2778.0,2777.9,3.16065765]
[1752099118408,0.71969,2778.0,2777.7,4.1827575]
[1752099118409,0.71974,2777.8,2777.7,4.1827575]
[1752099118613,3.2078,2778.0,2777.6,4.1827575]
[1752099118809,2.03062,2777.9,2777.6,0.71978]
[1752099119017,1.3109,2777.9,2777.7,3.15051377]
[1752099119217,3.2078,2778.0,2777.9,0.71971]
[1752099119417,3.92749,2778.0,2777.8,1.96332]
[1752099120011,3.2078,2778.0,2777.5,3.2078]
[1752099120214,3.2078,2778.0,2777.5,4.4514]
[1752099120215,0.71977,2777.7,2777.5,4.4514]
[1752099120727,0.71979,2777.6,2777.5,5.17122]
[1752099121223,0.71979,2777.6,2777.5,13.32173377]
[1752099121411,0.71977,2777.7,2777.6,0.71978]
[1752099121612,0.71976,2777.8,2777.7,0.71976]
[1752099122021,3.2078,2778.0,2777.5,4.4514]
[1752099122319,0.71979,2777.7,2777.6,0.71976]
[1752099122716,0.71979,2777.6,2777.5,8.32171377]
[1752099123018,0.71979,2777.6,2777.5,6.35831377]
[1752099123527,0.71979,2777.6,2777.5,3.15051377]
[1752099123816,0.71982,2777.5,2777.4,3.15051377]
[1752099124421,1.97912,2777.5,2777.4,3.15051377]
[1752099124611,2.95822,2777.5,2777.4,3.15051377]
[1752099124811,2.2384,2777.5,2777.2,3.15051377]
[1752099125022,0.71987,2777.3,2777.2,3.15051377]
[1752099125210,0.71987,2777.3,2776.9,8.1105175]
[1752099125211,0.71989,2777.2,2777.1,3.15051377]
[1752099125415,1.92329,2777.2,2777.1,3.15051377]
[1752099125816,1.79955,2777.5,2777.0,3.15051377]
[1752099126021,0.71995,2777.0,2776.9,3.15051377]
[1752099126219,0.71997,2776.9,2776.7,3.15051377]
[1752099126422,0.72,2776.8,2776.7,3.15051377]
[1752099126618,0.9791,2776.8,2776.6,3.15051377]
[1752099126823,2.90252,2776.7,2776.6,3.15051377]
[1752099127023,2.90254,2776.7,2776.5,0.72007]
[1752099127426,0.9762,2776.6,2776.3,3.2078]
[1752099127724,0.7201,2776.4,2776.3,3.2078]
[1752099128114,1.6963,2776.4,2776.1,3.87068377]
[1752099128414,0.72013,2776.3,2776.1,3.15051377]
[1752099128622,0.72015,2776.2,2776.0,3.15051377]
[1752099128822,1.301,2776.3,2776.0,3.15051377]
[1752099128823,0.9762,2776.1,2776.0,3.15051377]
[1752099129016,4.184,2776.1,2775.8,3.15051377]
[1752099129220,4.184,2776.1,2776.0,0.7202]
[1752099129221,3.2078,2776.1,2776.0,0.7202]
[1752099129824,3.2078,2776.1,2775.9,1.57447762]
[1752099130022,1.6964,2776.0,2775.9,1.57447762]
[1752099130222,2.9974,2776.0,2775.9,2.31494977]
[1752099130528,2.9974,2776.0,2775.9,1.81191652]
[1752099130727,0.72027,2775.8,2775.5,2.29480762]
[1752099131025,0.9762,2775.8,2775.6,2.31423623]
[1752099131225,0.9762,2775.8,2775.7,1.80714355]
[1752099131423,2.1314,2776.0,2775.7,1.80714355]
[1752099131424,1.301,2776.0,2775.7,1.80714355]
[1752099131624,2.02122,2776.0,2775.8,1.80714355]
[1752099131825,2.02122,2776.0,2775.7,0.72027]
[1752099132020,3.2078,2776.1,2775.4,1.57447762]
[1752099132224,3.2078,2776.3,2776.1,0.72016]
[1752099132424,0.72009,2776.5,2776.3,0.72012]
[1752099132626,0.7201,2776.4,2776.2,0.72014]
[1752099133029,5.4857,2776.6,2776.0,1.80052]
[1752099133229,5.22957,2776.6,2776.4,0.7201]
[1752099133430,5.22955,2776.6,2776.1,1.80045]
[1752099133626,0.72008,2776.5,2776.3,0.72011]
[1752099133826,0.72008,2776.5,2776.0,1.80052]
[1752099134027,0.72008,2776.5,2776.3,0.72011]
[1752099134225,0.72013,2776.3,2776.2,0.72013]
[1752099134425,4.5095,2776.6,2776.3,0.72012]
[1752099134625,0.7201,2776.4,2776.3,0.72012]
[1752099134826,0.72015,2776.3,2776.2,0.72014]
[1752099135027,0.72016,2776.2,2776.1,0.72016]
[1752099135227,4.5095,2776.6,2775.9,5.89297]
[1752099135424,0.72012,2776.4,2776.3,0.72012]
[1752099135628,4.5095,2776.6,2775.9,7.11727]
[1752099135629,0.72015,2776.3,2776.2,0.72014]
[1752099136433,0.7201,2776.5,2776.4,0.72008]
[1752099136633,0.72013,2776.4,2776.3,0.72011]
[1752099138031,4.5095,2776.6,2776.0,1.80049]
[1752099138232,0.7201,2776.5,2776.4,0.72008]
[1752099138541,0.72014,2776.4,2776.3,0.72011]
[1752099139438,0.7201,2776.4,2776.3,2.51632809]
[1752099139836,0.7201,2776.4,2776.3,1.79621809]
[1752099139837,1.6963,2776.4,2776.3,1.79621809]
[1752099140632,1.80034,2776.3,2775.9,1.56877294]
[1752099140832,0.7202,2776.0,2775.9,1.56877294]
[1752099141033,1.6964,2776.0,2775.9,3.36620752]
[1752099141433,0.9762,2776.0,2775.9,1.79743458]
[1752099141738,1.6964,2776.0,2775.9,1.79743458]
[1752099142131,3.53816374,2776.0,2775.9,1.79743458]
[1752099142431,0.72031,2775.6,2775.5,1.56877294]
[1752099142634,4.90431,2775.6,2775.5,1.79190066]
[1752099143032,6.10991,2775.6,2775.5,1.79190066]
[1752099143429,5.3896,2775.6,2775.5,1.79190066]
[1752099143632,5.3896,2775.6,2775.5,2.51223066]
[1752099144136,5.3896,2775.6,2775.5,2.29551398]
[1752099144638,5.3896,2775.6,2775.5,3.01584398]
[1752099144831,6.10991,2775.6,2775.5,2.29551398]
[1752099145236,0.72039,2775.3,2775.1,1.56877294]
[1752099145535,2.1818,2775.2,2775.1,1.57594657]
[1752099145735,2.90221,2775.2,2775.1,3.85901378]
[1752099145935,2.90221,2775.2,2775.1,3.85902353]
[1752099146236,2.1818,2775.2,2775.1,2.28307696]
[1752099146430,2.1818,2775.2,2775.1,3.85980971]
[1752099147030,2.90221,2775.2,2775.1,3.85980971]
[1752099148035,2.90221,2775.2,2775.1,2.28307696]
[1752099148237,2.90221,2775.2,2775.1,0.50378423]
[1752099148534,2.90221,2775.2,2775.1,2.26988718]
[1752099148738,2.90221,2775.2,2775.1,0.50378423]
[1752099148932,0.72054,2774.7,2774.6,1.57841906]
[1752099149140,3.2078,2775.0,2774.6,2.27190498]
[1752099149334,3.2078,2775.0,2774.7,1.76703539]
[1752099149537,0.72049,2774.9,2774.8,1.76703539]
[1752099150338,1.98599,2774.9,2774.8,1.76703539]
[1752099150540,2.96219,2774.9,2774.8,1.76703539]
[1752099152844,3.2078,2775.0,2774.9,0.72049]
[1752099153039,0.72046,2775.1,2774.9,4.06594445]
[1752099153242,0.7204,2775.3,2775.2,0.72041]
[1752099153447,0.7204,2775.3,2775.2,4.06728362]
[1752099154040,0.72036,2775.4,2775.3,0.72039]
[1752099154240,0.72036,2775.4,2775.3,3.87159414]
[1752099154447,0.72036,2775.4,2775.3,1.76703539]
[1752099155246,0.72036,2775.4,2775.3,3.87159414]
[1752099156146,0.72036,2775.4,2775.3,1.76703539]
[1752099156344,0.72036,2775.4,2775.3,3.87787169]
[1752099156540,1.69656,2775.4,2775.3,3.87787169]
[1752099156747,8.03392374,2775.4,2775.3,1.76703539]
[1752099157642,0.72046,2775.0,2774.9,1.58351833]
[1752099157842,0.72049,2774.9,2774.8,1.58351833]
[1752099158148,0.72052,2774.8,2774.7,1.58351833]
[1752099158348,2.79112,2774.8,2774.7,1.58351833]
[1752099158547,0.72054,2774.7,2774.6,1.58351833]
[1752099158751,2.98574,2774.7,2774.6,1.58351833]
[1752099161253,0.72054,2774.7,2774.6,1.58351833]
[1752099162050,3.10044,2775.1,2774.6,0.72057]
[1752099162250,0.72046,2775.0,2774.8,2.30423213]
[1752099162450,0.72049,2774.9,2774.8,0.72051]
[1752099163154,4.176,2775.3,2774.6,3.38514213]
[1752099163350,3.2078,2775.3,2774.8,1.58372213]
[1752099163551,0.72042,2775.2,2775.1,0.72042]
[1752099163746,0.72044,2775.1,2775.0,1.58372213]
[1752099163951,0.72046,2775.1,2774.9,1.58372213]
[1752099164151,0.72046,2775.0,2774.9,2.30419213]
[1752099164453,0.72046,2775.0,2774.9,1.58372213]
[1752099164755,0.72043,2775.2,2775.1,0.72042]
[1752099164955,0.7204,2775.3,2775.2,0.72039]
[1752099165156,0.72034,2775.5,2775.4,0.72033]
[1752099165354,3.92813,2775.6,2775.5,0.72033]
[1752099165658,0.72031,2775.6,2775.5,2.05243]
[1752099165955,0.72033,2775.5,2775.4,1.58272255]
[1752099166455,0.72033,2775.5,2775.4,2.30308255]
[1752099167254,0.72033,2775.5,2775.4,1.58272255]
[1752099169756,0.72033,2775.5,2775.4,3.26326084]
[1752099170152,1.32433,2775.5,2775.4,3.75206084]
[1752099170950,5.3610044,2777.5,2775.4,10.41052458]
[1752099171153,4.176,2777.1,2776.4,3.2078]
[1752099171353,0.71996,2777.0,2776.7,0.72001]
[1752099171656,3.2078,2777.1,2776.9,0.71996]
[1752099171857,3.2078,2777.1,2777.0,1.67970353]
[1752099171858,3.92773,2777.1,2777.0,1.67970353]
[1752099172258,4.176,2777.1,2777.0,1.67970353]
[1752099172558,4.89592,2777.1,2777.0,1.67970353]
[1752099172757,3.2078,2777.1,2777.0,1.67970353]
[1752099172954,0.7198,2777.6,2777.4,0.71984]
[1752099173155,0.71978,2777.7,2777.2,3.2078]
[1752099173358,4.176,2777.8,2777.2,3.2078]
[1752099173359,3.2078,2777.8,2777.7,0.71976]
[1752099173561,4.176,2777.8,2776.9,2.70432255]
[1752099173758,0.71992,2777.1,2777.0,1.676947]
[1752099174054,6.73768374,2777.1,2777.0,1.676947]
[1752099174255,6.73768374,2777.1,2776.6,1.58272255]
[1752099174256,3.2078,2777.1,2776.6,1.58272255]
[1752099174454,0.72,2776.8,2776.7,1.67559227]
[1752099175555,0.72004,2776.7,2776.5,0.72006]
[1752099175756,0.72002,2776.8,2776.6,1.6501254]
[1752099175956,0.72002,2776.8,2776.5,0.72006]
[1752099176157,0.72003,2776.7,2776.5,0.72006]
[1752099176352,1.3278,2777.0,2776.4,3.2078]
[1752099176555,0.72018,2776.1,2776.0,4.79052255]
[1752099176860,0.72026,2775.8,2775.6,2.77282255]
[1752099177063,0.72024,2775.9,2775.7,3.94778431]
[1752099177262,0.72014,2776.3,2776.1,0.72017]
[1752099177563,0.72018,2776.1,2775.9,0.72022]
[1752099177764,3.2078,2776.4,2776.0,1.6527167]
[1752099177965,0.72014,2776.3,2775.8,1.2931]
[1752099178266,0.72014,2776.3,2776.1,0.72018]
[1752099178561,3.2078,2776.4,2775.8,1.2931]
[1752099178757,3.2078,2776.4,2776.0,0.7202]
[1752099178961,0.72017,2776.2,2776.1,0.5038026]
[1752099179659,0.72017,2776.2,2776.1,1.2239826]
[1752099179856,0.72017,2776.2,2776.1,0.5038026]
[1752099180054,3.2078,2776.4,2776.1,0.5038026]
[1752099180257,0.72014,2776.3,2776.2,1.00638999]
[1752099180458,1.68834,2776.3,2776.2,1.00638999]
[1752099180763,2.89394,2776.3,2776.2,1.00638999]
[1752099181658,0.72013,2776.3,2776.2,1.00638999]
[1752099182063,0.72008,2776.5,2776.2,1.00638999]
[1752099182266,4.4134,2776.8,2776.3,1.00638999]
[1752099182459,0.72006,2776.6,2776.4,1.72648999]
[1752099182659,0.72006,2776.6,2776.5,1.00638999]
[1752099182861,2.1584,2777.0,2776.5,1.72645999]
[1752099183056,3.2078,2776.8,2776.6,1.00638999]
[1752099183261,3.2078,2776.8,2776.7,0.49748699]
[1752099183468,3.9278,2776.8,2776.7,0.49748699]
[1752099183862,4.896,2776.8,2776.7,0.49748699]
[1752099186567,0.7201,2776.5,2776.3,0.72011]
[1752099186767,0.71835348,2776.5,2776.4,1.2176068]
[1752099187265,0.72006,2776.6,2776.5,0.72007]
[1752099187473,2.01563,2776.7,2776.5,0.4975068]
[1752099187668,2.01563,2776.7,2776.5,0.72006]
[1752099188070,0.72005,2776.6,2776.5,0.72006]
[1752099188268,0.72004,2776.7,2776.6,0.72004]
[1752099188565,0.9875,2776.7,2776.2,3.2078]
[1752099188765,5.04956374,2776.4,2775.6,1.57734228]
[1752099188960,3.2078,2776.5,2776.0,3.2078]
[1752099189165,0.72013,2776.3,2776.1,0.72018]
[1752099189366,28.0465,2776.6,2776.0,3.2078]
[1752099189567,0.72003,2776.7,2776.5,0.72007]
[1752099189770,2.78764,2776.6,2776.1,1.3341]
[1752099190068,0.72018,2776.1,2776.0,3.92799]
[1752099190369,0.72018,2776.1,2776.0,4.8600671]
[1752099190561,0.72017,2776.2,2776.0,4.8600671]
[1752099190765,0.72017,2776.2,2776.1,1.6522671]
[1752099190972,0.72018,2776.1,2776.0,3.2078]
[1752099191565,0.72018,2776.1,2776.0,3.928]
[1752099191767,0.72018,2776.1,2776.0,3.71502289]
[1752099192066,1.2235,2776.6,2776.0,3.71502289]
[1752099192067,0.72017,2776.2,2776.1,0.72015]
[1752099192366,0.72017,2776.2,2776.1,2.88197812]
[1752099192872,0.72017,2776.2,2776.1,4.19087812]
[1752099193067,0.72017,2776.2,2776.1,10.7682204]
[1752099193267,0.72017,2776.2,2776.1,9.19087812]
[1752099193570,0.72015,2776.3,2776.2,0.72012]
[1752099193769,0.72015,2776.3,2776.2,3.34362812]
[1752099194570,0.72013,2776.4,2776.3,0.72009]
[1752099194873,0.72007,2776.6,2776.5,0.72004]
[1752099195067,0.72005,2776.6,2776.5,0.50904035]
[1752099196071,0.72005,2776.6,2776.5,1.22911035]
[1752099196270,0.72005,2776.6,2776.5,0.50904035]
[1752099197172,0.72005,2776.6,2776.5,2.16950507]
[1752099197373,0.72005,2776.6,2776.5,2.88957507]
[1752099197673,0.72005,2776.7,2776.6,0.72003]
[1752099197970,0.72005,2776.7,2776.6,1.22907035]
[1752099198469,0.72005,2776.7,2776.6,2.17017983]
[1752099198971,0.72002,2776.8,2776.7,0.71998]
[1752099199170,0.72006,2776.7,2776.6,0.72003]
[1752099199473,0.72006,2776.7,2776.6,2.89251879]
[1752099199970,0.72002,2776.7,2776.6,2.89251879]
[1752099200165,0.72002,2776.7,2776.6,3.38111879]
[1752099200361,0.72002,2776.7,2776.6,3.3813394]
[1752099200771,0.72002,2776.7,2776.6,3.87475492]
[1752099201166,1.34072,2776.7,2776.6,3.87475492]
[1752099201371,1.34072,2776.7,2776.6,2.66612492]
[1752099201372,2.32822,2776.7,2776.6,2.66612492]
[1752099201672,2.32822,2776.7,2776.6,4.2434672]
[1752099202071,3.56262,2776.7,2776.6,4.2434672]
[1752099202573,6.77042,2776.7,2776.6,4.2434672]
[1752099203366,5.78292,2776.7,2776.6,4.9635172]
[1752099203571,2.57512,2776.7,2776.6,7.08257492]
[1752099203771,2.57512,2776.7,2776.6,5.87392492]
[1752099203974,2.57512,2776.7,2776.6,4.25355216]
[1752099204274,3.56262,2776.7,2776.6,4.25355216]
[1752099205667,3.56262,2776.7,2776.6,4.97360216]
[1752099206175,3.56262,2776.7,2776.6,4.97615518]
[1752099206475,3.56262,2776.7,2776.6,4.25610518]
[1752099206865,3.56262,2776.7,2776.6,4.97615518]
[1752099207370,3.56262,2776.7,2776.6,4.25610518]
[1752099207678,3.56262,2776.7,2776.6,2.66867794]
[1752099209169,3.56262,2776.7,2776.6,2.66958399]
[1752099210071,3.56262,2776.7,2776.6,2.1727094]
[1752099210266,3.56262,2776.7,2776.6,2.66964587]
[1752099210474,1.34072,2776.7,2776.6,3.15824587]
[1752099210871,3.48934219,2776.7,2776.6,3.15824587]
[1752099211072,4.47684219,2776.7,2776.6,3.15824587]
[1752099212174,4.47684219,2776.7,2776.6,3.15679559]
[1752099212377,4.47684219,2776.7,2776.6,2.66819559]
[1752099212677,4.47684219,2776.7,2776.6,4.25562283]
[1752099213177,4.47684219,2776.7,2776.6,2.66819559]
[1752099213576,4.47684219,2776.7,2776.6,2.15723025]
[1752099213876,4.47684219,2776.7,2776.5,1.58742724]
[1752099213877,0.72005,2776.6,2776.5,1.58742724]
[1752099214072,0.72007,2776.5,2776.4,1.58742724]
[1752099214267,0.72007,2776.5,2776.3,1.58742724]
[1752099214268,1.62452219,2776.4,2776.3,1.58742724]
[1752099214475,3.45582219,2776.4,2776.3,1.92523654]
[1752099214674,4.44332219,2776.4,2776.3,1.92523654]
[1752099215370,3.5389,2776.4,2776.3,0.4886]
[1752099215574,3.5389,2776.4,2776.3,0.82642941]
[1752099215776,4.44332219,2776.4,2776.3,0.33782941]
[1752099216477,0.72018,2776.1,2776.0,1.58742724]
[1752099216677,3.23280219,2776.1,2776.0,1.92526225]
[1752099217176,4.56530219,2776.1,2776.0,1.92526225]
[1752099217676,4.56530219,2776.1,2776.0,0.33783501]
[1752099218171,2.67338,2776.1,2776.0,1.92526225]
[1752099218378,2.67338,2776.1,2776.0,0.82643501]
[1752099218677,2.67338,2776.1,2776.0,1.54663501]
[1752099219075,1.34088,2776.1,2776.0,1.54663501]
[1752099219574,0.9822,2776.4,2776.1,0.72018]
[1752099219779,3.2078,2776.2,2775.3,1.3919]
[1752099220077,3.2078,2775.3,2774.8,0.9621]
[1752099220267,3.2078,2774.9,2774.8,1.128]
[1752099220473,3.2078,2774.9,2774.8,4.02784219]
[1752099220672,3.92829,2774.9,2774.8,7.4029]
[1752099220975,3.92829,2774.9,2774.8,3.365]
[1752099221277,0.72059,2774.5,2774.4,0.9621]
[1752099221467,3.92839,2774.5,2774.4,0.9621]
[1752099222177,3.92839,2774.5,2774.4,2.2743]
[1752099224271,3.2078,2774.5,2774.4,2.2743]
[1752099224466,3.92839,2774.5,2774.4,2.2743]
[1752099225270,3.92839,2774.5,2774.4,2.9006]
[1752099225474,3.2078,2774.5,2774.4,2.9006]
[1752099225872,3.2078,2774.5,2774.4,3.62122]
[1752099226072,3.2078,2774.5,2774.4,2.9006]
[1752099226272,3.2078,2774.5,2774.4,8.62122]
[1752099226478,3.2078,2775.4,2774.4,7.9006]
[1752099226679,0.72045,2775.1,2774.7,3.2078]
[1752099226977,0.72044,2775.1,2775.0,0.6263]
[1752099227379,2.60699308,2775.1,2775.0,0.6263]
[1752099227583,1.99289308,2775.1,2775.0,0.6263]
[1752099229275,1.99289308,2775.1,2775.0,1.9221]
[1752099229577,0.72046,2775.0,2774.9,1.0943]
[1752099229779,1.33456,2775.0,2774.9,1.7206]
[1752099230376,1.33456,2775.0,2774.9,1.0943]
[1752099230786,1.33456,2775.0,2774.9,1.7206]
[1752099232987,0.72049,2774.9,2774.8,55.681]
[1752099233284,1.33459,2774.9,2774.8,55.681]
[1752099237881,1.80162,2774.3,2773.7,4.1699]
[1752099238084,0.72075,2773.9,2773.8,29.9528]
[1752099238287,0.72075,2773.9,2773.8,30.5791]
[1752099238489,0.72075,2773.9,2773.8,31.5412]
[1752099239188,0.72075,2773.9,2773.8,32.26198]
[1752099239584,3.23559156,2775.4,2774.4,3.60311]
[1752099239783,1.80041,2776.2,2775.4,0.72034]
[1752099239988,1.80041,2776.2,2775.6,0.72031]
[1752099239989,1.38879772,2776.1,2775.6,0.72031]
[1752099240186,0.7203,2775.7,2775.6,0.72031]
[1752099240388,0.7203,2775.7,2775.6,3.92811]
[1752099240579,0.7203,2775.7,2775.6,3.7233088]
[1752099241182,1.3344,2775.7,2775.6,3.7233088]
[1752099241383,1.3344,2775.7,2775.6,0.5155088]
[1752099241586,0.7203,2775.7,2775.6,0.5155088]
[1752099241786,1.3344,2775.7,2775.6,0.5155088]
[1752099242989,0.7203,2775.7,2775.6,0.5155088]
[1752099243189,1.3344,2775.7,2775.6,1.1418088]
[1752099243395,0.9822,2778.2,2776.4,3.2078]
[1752099243589,4.29717952,2777.8,2777.3,5.05181713]
[1752099243792,0.9822,2778.2,2777.7,3.2078]
[1752099243990,0.9822,2778.2,2778.1,3.92746]
[1752099244291,0.9822,2778.2,2778.1,4.4429688]
[1752099244498,0.9822,2778.2,2778.1,3.7233088]
[1752099244697,0.71962,2778.3,2778.1,4.20946869]
[1752099244893,0.71962,2778.3,2778.2,1.00166869]
[1752099245196,1.70182,2778.3,2778.2,0.5155088]
[1752099245594,1.70182,2778.3,2778.2,1.05262868]
[1752099246297,0.71961,2778.3,2778.2,1.05206372]
[1752099247292,1.2433,2778.9,2778.2,1.05206372]
[1752099247492,0.9822,2779.3,2778.8,3.2078]
[1752099247694,0.71945,2779.0,2778.9,1.05206372]
[1752099248089,4.1526,2780.0,2778.8,3.2078]
[1752099248293,0.71929,2779.6,2779.2,0.71936]
[1752099248497,0.71929,2779.6,2779.3,1.84430984]
[1752099248696,0.71929,2779.6,2779.4,1.12496984]
[1752099248892,0.71929,2779.6,2779.5,1.12496984]
[1752099249094,0.71932,2779.5,2779.1,3.2078]
[1752099249300,0.9448,2779.6,2779.2,1.12483607]
[1752099249494,0.7193,2779.5,2779.3,1.12483607]
[1752099249695,1.66409,2779.6,2779.3,0.71935]
[1752099250198,0.7193,2779.5,2779.2,0.71936]
[1752099250399,0.7193,2779.5,2779.3,0.56241083]
[1752099250600,0.7193,2779.5,2779.2,0.71936]
[1752099250895,0.7193,2779.5,2779.3,0.56241082]
[1752099251100,0.7193,2779.5,2779.2,0.71936]
[1752099251302,0.7193,2779.5,2779.3,0.5624016]
[1752099251491,1.79819,2779.6,2779.1,3.2078]
[1752099251691,2.00605864,2779.7,2778.8,3.92726]
[1752099251692,0.71944,2779.0,2778.8,3.92726]
[1752099251900,0.9448,2779.4,2778.9,1.8443768]
[1752099252202,0.7194,2779.1,2779.0,1.12491508]
[1752099252401,0.7194,2779.1,2779.0,1.12491494]
[1752099253704,1.6642,2779.1,2779.0,1.12491494]
[1752099253910,5.95116,2779.1,2778.5,3.92735]
[1752099254108,0.71953,2778.6,2778.5,3.2078]
[1752099256108,0.71953,2778.6,2777.8,1.2599]
[1752099256109,0.71961,2778.3,2778.2,3.2078]
[1752099257398,0.71961,2778.3,2778.2,3.25658526]
[1752099257804,1.7988,2778.7,2778.2,5.26911526]
[1752099258009,2.74363,2778.6,2778.3,1.2929]
[1752099258211,0.71958,2778.4,2778.3,1.2929]
[1752099258508,0.71958,2778.4,2778.3,1.34168526]
[1752099259304,1.66438,2778.4,2778.3,0.04878526]
[1752099259906,7.46736,2778.8,2778.7,0.7195]
[1752099259907,3.2078,2778.8,2778.7,0.7195]
[1752099260108,0.71945,2779.0,2778.7,3.2078]
[1752099260304,0.71945,2778.9,2778.8,1.2264]
[1752099260505,0.71945,2778.9,2778.8,1.27518526]
[1752099261812,0.7194,2779.2,2779.1,0.71938]
[1752099262012,0.7194,2779.1,2779.0,3.9272]
[1752099262212,0.7194,2779.1,2779.0,5.2632]
[1752099262412,0.7194,2779.1,2779.0,5.31198526]
[1752099262613,3.97411,2779.6,2779.1,0.71939]
[1752099262912,0.7194,2779.2,2779.1,0.7194]
[1752099263108,3.9741,2779.6,2779.1,0.7194]
[1752099263413,0.7194,2779.1,2779.0,5.31199526]
[1752099263614,0.71937,2779.3,2779.2,0.71935]
[1752099264014,3.4574,2779.6,2779.0,4.5438]
[1752099264314,0.71937,2779.3,2779.1,0.71938]
[1752099264614,0.71936,2779.3,2779.1,0.71938]
[1752099264813,0.71936,2779.3,2779.0,4.5438]
[1752099264814,0.71936,2779.3,2779.2,0.71938]
[1752099265114,0.71935,2779.4,2779.3,0.71933]
[1752099265315,0.71932,2779.5,2779.4,0.71931]
[1752099265510,0.71932,2779.4,2779.3,3.92713]
[1752099266009,0.71931,2779.5,2779.4,0.71932]
[1752099266211,1.2311,2779.6,2779.4,0.56244237]
[1752099266515,2.89518,2779.6,2779.5,0.56244237]
[1752099266911,12.94146753,2779.6,2779.5,0.56244237]
[1752099267116,9.73366753,2779.6,2779.5,0.56244237]
[1752099267308,1.79825,2779.5,2778.9,3.2078]
[1752099267513,1.79825,2779.5,2779.0,0.56246239]
[1752099267514,0.7194,2779.1,2779.0,0.56246239]
[1752099267911,1.6642,2779.1,2779.0,0.56246239]
[1752099268215,1.6642,2779.1,2779.0,1.28189239]
[1752099268412,1.6642,2779.1,2779.0,0.56246239]
[1752099269013,2.9496,2779.1,2779.0,0.56246239]
[1752099269414,2.0048,2779.1,2779.0,0.56246239]
[1752099269613,0.7195,2778.7,2778.6,3.2078]
[1752099269814,1.0,2778.7,2778.6,3.92733]
[1752099270215,1.7195,2778.7,2778.6,3.92733]
[1752099270817,1.7195,2778.7,2778.6,3.2078]
[1752099271213,2.6643,2778.7,2778.6,3.2078]
[1752099272716,3.3287,2778.7,2778.6,3.2078]
[1752099273217,3.3287,2778.7,2778.6,3.54531229]
[1752099273418,3.3287,2778.7,2778.6,0.33751229]
[1752099273920,0.71958,2778.4,2778.3,3.2078]